bitfinex-derivatives/quotes_ETHF0:USTF0_20250205
["timestamp","ask_amount","ask_price","bid_price","bid_amount"]
[1738780082818,3.21327355,2739.4,2739.1,0.55756924]
[1738780083018,3.21327355,2739.4,2739.2,0.55756924]
[1738780083223,3.21327355,2739.4,2739.3,0.55756924]
[1738780083518,3.21327355,2739.4,2739.3,0.55671628]
[1738780084018,3.21327355,2739.4,2738.9,1.9487]
[1738780084333,3.2078,2739.1,2739.0,0.55658503]
[1738780085523,3.2078,2739.1,2739.0,0.55655463]
[1738780085721,3.2078,2739.1,2738.8,0.00547355]
[1738780085918,3.2078,2739.1,2738.9,0.55659134]
[1738780086117,3.2078,2739.1,2738.8,0.00547355]
[1738780086418,3.2078,2739.1,2738.9,0.55661283]
[1738780086621,0.00547355,2739.4,2739.0,0.55661283]
[1738780086622,3.21327355,2739.4,2739.0,0.55661283]
[1738780086821,3.2078,2739.1,2738.9,4.68583949]
[1738780087022,3.2078,2739.1,2738.8,0.00547355]
[1738780087831,3.2078,2739.1,2738.9,0.55680228]
[1738780088029,3.2078,2739.1,2739.0,0.5567342]
[1738780088525,0.00547355,2739.4,2739.0,14.55115426]
[1738780088723,0.00547355,2739.4,2739.3,3.2078]
[1738780088920,0.00547355,2739.4,2739.3,3.7645342]
[1738780089125,0.00547355,2739.4,2739.3,8.55582839]
[1738780089528,3.2078,2740.0,2739.3,13.55582839]
[1738780089825,3.2078,2740.3,2739.8,4.28773028]
[1738780090025,18.74528719,2740.7,2740.1,3.2078]
[1738780090232,18.74528719,2740.7,2740.2,0.5567342]
[1738780090422,18.74528719,2740.7,2740.3,0.5567342]
[1738780090626,14.06851607,2740.3,2740.2,4.70145783]
[1738780090820,14.06851607,2740.3,2740.2,0.00547355]
[1738780091229,14.79824607,2740.3,2740.2,0.00547355]
[1738780091426,19.79824607,2740.3,2740.2,0.00547355]
[1738780091625,21.80224607,2740.3,2740.2,0.00547355]
[1738780091821,21.80224607,2740.3,2739.1,3.2078]
[1738780091822,0.72985,2739.9,2738.9,4.09]
[1738780092023,3.2078,2739.8,2739.0,0.55531385]
[1738780092219,3.2078,2739.8,2739.2,4.67161458]
[1738780092427,3.2078,2739.8,2739.0,4.67161458]
[1738780092630,3.2078,2739.8,2738.9,4.09]
[1738780092631,3.2078,2739.8,2739.1,3.7625851]
[1738780092831,16.07251607,2740.3,2739.3,4.67161458]
[1738780093128,14.06851607,2740.3,2739.8,7.49553028]
[1738780093434,14.06851607,2740.3,2739.9,4.77572399]
[1738780093930,14.06851607,2740.3,2739.6,7.98352399]
[1738780094130,17.27631607,2740.3,2739.3,3.2078]
[1738780094324,17.27631607,2740.3,2739.7,4.71200899]
[1738780094728,17.27631607,2740.3,2739.3,7.91980899]
[1738780094729,17.27631607,2740.3,2739.4,5.07760899]
[1738780095034,17.27631607,2740.3,2739.8,4.80982349]
[1738780095233,17.27631607,2740.3,2739.6,3.2078]
[1738780095534,17.27631607,2740.3,2739.9,4.80982349]
[1738780095924,17.27631607,2740.3,2739.6,3.2078]
[1738780096130,4.69483623,2740.3,2740.2,7.49553028]
[1738780096431,1.19553022,2740.3,2740.2,13.050024]
[1738780096630,1.19553022,2740.3,2740.2,18.60088089]
[1738780096826,3.2078,2741.1,2740.2,18.60088089]
[1738780097029,3.2078,2741.1,2740.5,3.2078]
[1738780097539,3.2078,2741.1,2740.6,4.73952635]
[1738780098034,40.20039405,2742.7,2740.6,4.73952635]
[1738780098035,3.2078,2742.1,2740.8,3.2078]
[1738780098229,3.2078,2742.1,2740.9,0.55267466]
[1738780098422,3.2078,2742.1,2740.9,7.99722288]
[1738780098628,3.2078,2742.1,2740.9,17.6374158]
[1738780098629,18.74528719,2742.1,2740.9,17.6374158]
[1738780098827,18.74528719,2742.1,2741.3,3.2078]
[1738780099030,18.74528719,2742.1,2741.0,0.55266732]
[1738780099031,3.2078,2741.8,2741.0,3.2078]
[1738780099231,3.2078,2741.8,2740.6,9.54030383]
[1738780099437,3.2078,2741.8,2741.1,4.81311147]
[1738780099639,3.2078,2741.8,2741.0,4.81311147]
[1738780099933,3.2078,2741.8,2740.9,3.2078]
[1738780099934,3.2078,2741.8,2741.2,4.68139358]
[1738780100329,3.2078,2741.8,2741.0,4.68139358]
[1738780100527,3.2078,2741.8,2741.3,4.68139358]
[1738780100930,3.2078,2741.8,2741.2,7.88919358]
[1738780100931,3.2078,2741.8,2741.2,3.2078]
[1738780101333,3.2078,2741.8,2741.3,4.78903011]
[1738780101938,3.2078,2742.1,2741.3,4.78903011]
[1738780102235,3.2078,2742.3,2741.5,3.2078]
[1738780102634,1.9042,2742.5,2741.2,3.2078]
[1738780102635,3.2078,2742.0,2741.2,3.2078]
[1738780102937,3.2078,2742.0,2741.5,7.9839345]
[1738780103339,3.2078,2742.0,2741.5,3.2078]
[1738780103739,3.2078,2742.0,2741.6,4.7761345]
[1738780103931,3.2078,2742.0,2741.2,3.2078]
[1738780104540,3.2078,2742.0,2741.3,4.81650151]
[1738780106942,3.2078,2742.0,2741.2,3.2078]
[1738780107332,3.2078,2741.3,2740.9,3.2078]
[1738780108236,0.72953,2741.1,2740.9,3.2078]
[1738780108535,3.2078,2741.3,2740.9,3.2078]
[1738780108840,3.2078,2741.0,2740.6,0.00547355]
[1738780111834,3.2078,2741.9,2740.8,3.2078]
[1738780112037,3.2078,2741.9,2741.1,3.2078]
[1738780112235,3.2078,2741.9,2741.4,3.2078]
[1738780112540,3.2078,2742.4,2741.7,3.2078]
[1738780112728,3.2078,2742.4,2742.0,3.2078]
[1738780114545,3.2078,2742.4,2741.5,3.2078]
[1738780114837,3.2078,2742.1,2741.2,9.8644741]
[1738780115044,3.2078,2742.1,2741.2,10.41770009]
[1738780115237,3.2078,2742.1,2741.2,5.1361]
[1738780115439,3.2078,2742.1,2741.3,4.70608586]
[1738780115646,3.2078,2742.1,2741.4,0.55357231]
[1738780115850,3.2078,2742.1,2741.5,0.55349698]
[1738780116144,3.2078,2742.5,2741.6,3.76171774]
[1738780116339,3.2078,2742.5,2741.6,3.2078]
[1738780116543,3.2078,2742.5,2741.7,4.84465766]
[1738780117146,3.93696,2742.5,2741.6,3.2078]
[1738780117341,3.2078,2742.5,2741.6,3.2078]
[1738780117542,3.2078,2742.5,2741.8,4.82181257]
[1738780117747,3.2078,2742.5,2741.7,4.82181257]
[1738780117947,3.2078,2742.5,2741.6,3.2078]
[1738780118144,3.2078,2742.5,2741.7,0.55423918]
[1738780118447,3.2078,2742.5,2741.8,4.63296413]
[1738780118646,3.2078,2742.5,2741.9,3.2078]
[1738780118944,3.2078,2742.5,2741.9,7.84076413]
[1738780119241,3.2078,2742.5,2742.0,0.55431879]
[1738780119442,3.2078,2742.5,2742.0,4.67226742]
[1738780119641,3.2078,2742.5,2742.0,4.67774097]
[1738780120248,0.72922,2742.3,2742.0,4.67774097]
[1738780120448,0.72922,2742.3,2742.0,0.00547355]
[1738780120643,3.2078,2742.2,2742.0,0.00547355]
[1738780120848,0.72925,2742.1,2742.0,0.00547355]
[1738780122346,3.2078,2742.2,2742.0,0.00547355]
[1738780122745,0.72925,2742.1,2742.0,0.00547355]
[1738780123845,0.72938,2741.7,2741.0,1.9945]
[1738780124045,0.72942,2741.5,2741.1,0.5559334]
[1738780124252,0.72942,2741.5,2740.7,3.2078]
[1738780124253,5.2458,2741.6,2741.2,0.5559334]
[1738780124451,5.2458,2741.6,2740.8,4.79814145]
[1738780124649,5.2458,2741.6,2740.9,0.55632672]
[1738780124951,5.2458,2741.6,2741.0,0.56180027]
[1738780124952,0.00547355,2741.5,2741.0,0.56180027]
[1738780125148,0.00547355,2741.5,2741.1,0.55632672]
[1738780125343,0.00547355,2741.5,2741.2,0.55665759]
[1738780125647,0.00547355,2741.5,2741.3,0.55665604]
[1738780125853,0.00547355,2741.5,2741.1,4.64147953]
[1738780126051,0.00547355,2741.5,2741.2,0.55663705]
[1738780126246,0.00547355,2741.5,2741.3,0.55663705]
[1738780126446,0.00547355,2741.5,2741.4,0.55663705]
[1738780126847,0.00547355,2741.5,2741.1,4.64147953]
[1738780127049,0.00547355,2741.5,2741.2,0.5569433]
[1738780127252,0.00547355,2741.5,2741.3,0.5569433]
[1738780127451,0.00547355,2741.5,2741.4,0.5569433]
[1738780127848,0.00547355,2741.5,2741.0,3.21327355]
[1738780128050,0.00547355,2741.5,2741.1,0.55706233]
[1738780128246,0.00547355,2741.5,2741.2,0.55706233]
[1738780128247,0.73489355,2741.5,2741.2,0.55706233]
[1738780128451,0.72948,2741.3,2741.0,3.21327355]
[1738780128648,3.2078,2741.3,2741.0,0.00547355]
[1738780128856,0.72952,2741.1,2741.0,0.00547355]
[1738780129357,3.2078,2741.3,2741.0,0.00547355]
[1738780129657,3.2078,2741.3,2740.1,3.2078]
[1738780129855,3.2078,2740.9,2740.2,0.55695712]
[1738780130157,3.93739,2740.9,2740.3,0.55695712]
[1738780130358,3.2078,2740.9,2740.4,0.55695712]
[1738780130652,2.0482,2741.4,2740.5,0.55695712]
[1738780130950,0.72954,2741.1,2740.6,0.55695712]
[1738780131150,3.2078,2740.9,2740.4,0.00547355]
[1738780131358,3.93738,2740.9,2740.5,0.55674115]
[1738780131556,3.2078,2740.9,2740.4,0.00547355]
[1738780131752,3.2078,2740.9,2740.5,5.26294151]
[1738780131952,3.2078,2740.9,2740.6,0.55673936]
[1738780132158,3.2078,2740.9,2740.7,0.55673936]
[1738780132357,3.2078,2740.9,2740.8,0.55673936]
[1738780132547,3.2078,2740.9,2740.5,4.70620215]
[1738780132748,3.2078,2740.9,2740.6,0.55665975]
[1738780132955,0.72948,2741.3,2740.7,0.55665975]
[1738780133250,5.256,2741.4,2740.5,4.70620215]
[1738780133447,0.72947,2741.3,2740.6,0.55663641]
[1738780133750,3.93733,2741.1,2740.4,0.00547355]
[1738780134059,3.2078,2741.1,2740.4,0.00547355]
[1738780134261,3.2078,2741.1,2740.5,0.55653654]
[1738780134564,3.2078,2741.1,2740.4,0.00547355]
[1738780134756,3.2078,2741.1,2740.5,0.55653044]
[1738780134951,3.2078,2741.1,2740.6,0.55653044]
[1738780135259,5.256,2741.4,2740.5,4.84497865]
[1738780135455,5.256,2741.4,2740.6,0.55646102]
[1738780135657,5.256,2741.4,2740.7,0.55646102]
[1738780135856,5.256,2741.4,2740.8,0.55646102]
[1738780136161,5.256,2741.4,2740.7,4.76471343]
[1738780136162,3.2078,2741.4,2740.7,4.76471343]
[1738780136361,3.2078,2741.4,2740.8,0.55642808]
[1738780136560,3.2078,2741.4,2740.8,3.2078]
[1738780136867,3.2078,2741.4,2740.9,5.19504371]
[1738780137155,0.00547355,2741.5,2741.1,3.2078]
[1738780137350,0.00547355,2741.5,2741.3,3.93496247]
[1738780137550,0.00547355,2741.5,2741.4,0.55634876]
[1738780137754,0.00547355,2741.5,2741.4,5.36808286]
[1738780139052,0.00547355,2741.5,2741.4,8.57588286]
[1738780139253,2.0287,2742.6,2741.4,17.86546797]
[1738780139254,3.2078,2742.6,2741.4,17.86546797]
[1738780139453,3.2078,2742.6,2741.5,0.55642271]
[1738780139659,3.93693,2742.6,2741.6,0.55642271]
[1738780139853,3.2078,2742.3,2741.7,0.55642271]
[1738780140053,0.72934,2741.8,2741.2,3.2078]
[1738780140261,3.2078,2741.7,2741.2,3.2078]
[1738780140562,3.2078,2741.7,2741.3,0.55658957]
[1738780140757,3.2078,2741.7,2741.2,3.21327355]
[1738780141259,3.2078,2741.4,2741.2,0.00547355]
[1738780142464,0.72947,2741.3,2741.2,0.00547355]
[1738780142664,3.2078,2741.4,2741.2,0.00547355]
[1738780142855,1.9303,2741.3,2740.5,3.2078]
[1738780143072,3.93736,2741.0,2740.5,3.2078]
[1738780143267,3.2078,2741.0,2740.5,3.2078]
[1738780144161,3.2078,2741.0,2740.5,3.21327355]
[1738780144471,3.2078,2741.5,2740.8,3.2078]
[1738780144658,3.2078,2741.5,2740.9,0.55690233]
[1738780144861,3.2078,2741.5,2741.0,0.55690233]
[1738780145156,3.2078,2741.5,2741.1,5.32268412]
[1738780145362,0.00547355,2741.8,2741.2,0.55690233]
[1738780145561,0.00547355,2741.8,2741.3,0.55690233]
[1738780145764,0.00547355,2741.8,2741.4,0.55690233]
[1738780145965,0.00547355,2741.8,2741.5,0.55690233]
[1738780146161,0.00547355,2741.8,2741.3,7.97358179]
[1738780146367,0.00547355,2741.8,2741.4,0.556849]
[1738780146564,0.00547355,2741.8,2741.5,0.556849]
[1738780146863,0.00547355,2741.8,2741.4,4.70405924]
[1738780147169,3.2078,2742.5,2741.7,3.2078]
[1738780147370,3.2078,2742.5,2742.0,3.2078]
[1738780147563,3.2078,2742.5,2742.1,0.55686222]
[1738780147761,3.2078,2742.5,2742.1,4.80991749]
[1738780148067,3.2078,2742.5,2742.2,0.55670524]
[1738780148263,3.2078,2742.5,2742.1,4.80991749]
[1738780148469,3.2078,2742.5,2742.0,3.21327355]
[1738780149864,0.00547355,2742.6,2742.1,0.55663178]
[1738780150066,2.995,2743.7,2742.3,3.2078]
[1738780150257,3.2078,2743.9,2742.9,3.2078]
[1738780150462,3.2078,2743.9,2743.3,3.2078]
[1738780151770,3.2078,2743.9,2743.0,3.2078]
[1738780151969,3.2078,2743.9,2743.1,0.5550174]
[1738780152272,3.2078,2743.9,2743.1,4.75322302]
[1738780152472,3.2078,2743.9,2743.3,3.2078]
[1738780152962,3.2078,2743.9,2743.4,4.75322302]
[1738780153371,3.2078,2743.9,2743.4,4.75869657]
[1738780153759,3.2078,2743.9,2743.4,0.00547355]
[1738780155470,3.93658,2743.9,2743.4,0.00547355]
[1738780155963,3.2078,2743.9,2743.4,0.00547355]
[1738780156267,0.72893,2743.4,2742.2,0.3648]
[1738780156569,3.2078,2743.2,2742.2,0.3648]
[1738780156766,3.2078,2742.8,2742.1,7.0266]
[1738780156970,3.2078,2742.8,2742.1,5.1179]
[1738780157270,0.72911,2742.7,2742.1,3.2078]
[1738780157573,0.00547355,2742.7,2742.2,0.00547355]
[1738780157968,0.72919,2742.4,2742.2,0.00547355]
[1738780158270,3.2078,2742.3,2742.2,0.00547355]
[1738780160572,3.937,2742.3,2742.2,0.00547355]
[1738780160779,3.937,2742.3,2741.3,3.2078]
[1738780160780,8.2078,2742.3,2741.3,3.2078]
[1738780160974,1.82827355,2742.7,2741.3,3.2078]
[1738780160975,3.2078,2741.8,2741.3,3.2078]
[1738780161273,3.2078,2741.8,2740.8,4.2759]
[1738780161471,3.2078,2741.8,2741.0,3.2078]
[1738780161869,5.241,2742.2,2741.1,8.95566486]
[1738780162071,5.241,2742.2,2741.1,8.96113841]
[1738780162268,5.241,2742.2,2741.1,9.51506461]
[1738780162475,5.241,2742.2,2741.3,3.2078]
[1738780162675,5.241,2742.2,2741.3,7.14124868]
[1738780162879,5.241,2742.2,2741.4,4.79995873]
[1738780164771,5.241,2742.2,2741.3,3.2078]
[1738780164977,0.72927,2742.1,2741.3,3.2078]
[1738780165179,0.72929,2742.0,2741.3,3.2078]
[1738780165677,5.241,2742.2,2741.3,3.2078]
[1738780165882,3.93712,2741.9,2741.1,0.00547355]
[1738780166077,3.2078,2741.5,2741.1,0.00547355]
[1738780166481,3.2078,2741.2,2741.1,0.00547355]
[1738780166974,8.93729,2741.2,2740.1,5.98404868]
[1738780167278,8.93729,2741.2,2739.9,1.9689]
[1738780167279,3.2078,2740.5,2739.9,1.9689]
[1738780167470,3.2078,2740.2,2739.3,3.2078]
[1738780167983,3.2078,2739.9,2739.4,4.84902096]
[1738780168176,3.2078,2740.2,2739.2,6.02554868]
[1738780168371,3.93344868,2740.6,2739.2,6.02554868]
[1738780168372,3.2078,2739.8,2739.5,0.00547355]
[1738780169175,3.93767,2739.8,2739.5,0.00547355]
[1738780169577,3.2078,2739.8,2739.5,0.00547355]
[1738780171978,0.00547355,2740.0,2739.5,0.00547355]
[1738780172182,0.00547355,2740.0,2739.6,4.68332808]
[1738780172983,0.00547355,2740.0,2739.7,40.8]
[1738780174375,3.2078,2739.8,2739.5,1.92967355]
[1738780174583,0.00547355,2740.0,2739.5,1.92967355]
[1738780175275,0.00547355,2740.0,2739.7,3.2078]
[1738780175677,0.00547355,2740.0,2739.8,4.67554624]
[1738780175873,1.9636,2741.3,2739.8,14.41425041]
[1738780175874,3.2078,2741.0,2739.8,14.41425041]
[1738780176075,3.2078,2741.0,2740.0,7.50551135]
[1738780176482,3.2078,2741.0,2740.1,4.7213273]
[1738780177177,0.00547355,2740.8,2740.1,4.7213273]
[1738780178583,0.00547355,2740.8,2740.3,3.2078]
[1738780178783,0.00547355,2740.8,2740.4,6.34291135]
[1738780179087,3.21327355,2740.8,2740.4,6.926488]
[1738780179289,3.21327355,2740.8,2740.4,2.0886]
[1738780179691,3.2078,2740.5,2739.8,5.1844]
[1738780179891,3.21327355,2740.8,2739.8,5.1844]
[1738780180186,3.21327355,2740.8,2739.9,4.83746021]
[1738780180386,3.21327355,2740.8,2740.1,3.2078]
[1738780180387,0.00547355,2740.8,2740.1,3.2078]
[1738780180786,0.00547355,2740.8,2740.2,4.72792446]
[1738780181191,0.00547355,2740.8,2740.1,4.72792446]
[1738780181382,3.21327355,2740.8,2740.3,4.84171905]
[1738780181790,3.21327355,2740.8,2740.2,4.84171905]
[1738780181989,3.21327355,2740.8,2740.1,8.04951905]
[1738780182187,0.00547355,2740.8,2740.3,4.74961399]
[1738780182584,0.00547355,2740.8,2740.2,4.74961399]
[1738780182784,0.00547355,2740.8,2740.5,3.2078]
[1738780182984,3.2078,2741.4,2740.6,2.0773]
[1738780183185,3.2078,2741.4,2740.6,6.82691399]
[1738780183387,3.2078,2741.4,2740.7,1.9034]
[1738780183691,3.2078,2741.4,2740.7,5.1112]
[1738780183888,3.2078,2741.4,2740.8,4.83419852]
[1738780184194,0.00547355,2741.3,2740.8,4.83419852]
[1738780184387,0.00547355,2741.3,2740.8,9.13190987]
[1738780185983,0.00547355,2741.3,2740.8,9.68589472]
[1738780186184,3.2078,2741.9,2741.2,3.2078]
[1738780186591,3.2078,2742.3,2741.3,13.61824809]
[1738780186796,3.2078,2742.3,2741.5,3.2078]
[1738780187092,3.2078,2742.3,2741.6,6.69297267]
[1738780187391,3.2078,2742.3,2741.6,6.69844622]
[1738780187593,3.2078,2743.0,2742.0,4.29771135]
[1738780187886,3.2078,2743.0,2742.1,3.2078]
[1738780188097,3.2078,2743.0,2742.1,7.8596532]
[1738780189289,3.2078,2743.0,2742.1,4.6518532]
[1738780189795,3.2078,2742.6,2741.8,0.5539106]
[1738780189996,3.2078,2742.6,2742.2,4.79227965]
[1738780190392,3.2078,2742.6,2741.8,0.55375904]
[1738780190584,3.2078,2742.6,2742.0,3.2078]
[1738780190890,3.2078,2742.6,2742.1,4.75093687]
[1738780191096,3.2078,2742.6,2741.8,4.75093687]
[1738780191292,3.2078,2742.6,2741.7,1.9192]
[1738780191596,3.2078,2742.6,2741.9,4.77073142]
[1738780191797,3.2078,2742.6,2741.8,4.77073142]
[1738780191798,3.2078,2742.2,2741.8,4.77073142]
[1738780192095,3.2078,2741.9,2741.6,0.00547355]
[1738780193391,3.2078,2742.2,2741.6,0.00547355]
[1738780194300,3.2078,2742.7,2742.1,3.2078]
[1738780194696,3.2078,2742.4,2742.2,4.6636486]
[1738780195007,3.2078,2742.4,2741.8,4.6636486]
[1738780195396,3.2078,2742.4,2741.7,4.64304468]
[1738780195690,3.2078,2742.4,2741.6,0.00547355]
[1738780195895,3.2078,2742.4,2741.8,4.64304468]
[1738780196301,3.2078,2742.4,2741.6,0.00547355]
[1738780196798,3.2078,2742.4,2741.7,4.67496459]
[1738780197697,3.2078,2742.1,2741.6,0.00547355]
[1738780198101,3.2078,2742.4,2741.7,4.71127]
[1738780198495,3.2078,2742.7,2741.7,4.71127]
[1738780198700,3.2078,2742.4,2741.7,4.71127]
[1738780199698,3.9472,2743.1,2741.6,0.00547355]
[1738780199699,3.2078,2741.8,2741.6,0.00547355]
[1738780200502,3.93714,2741.8,2741.6,0.00547355]
[1738780200703,8.2078,2741.8,2740.6,0.55413165]
[1738780200994,1.98,2742.0,2740.2,0.55413165]
[1738780200995,3.2078,2740.9,2740.2,0.55413165]
[1738780201191,3.93738,2740.9,2740.0,3.2078]
[1738780201390,1.583,2741.4,2740.1,4.67247815]
[1738780201593,3.2078,2740.2,2739.7,2.0162]
[1738780201893,3.21327355,2740.2,2739.7,0.00547355]
[1738780202790,3.2078,2739.9,2739.7,0.00547355]
[1738780203404,0.72995,2739.5,2738.1,3.2078]
[1738780203597,3.2078,2738.6,2738.1,3.2078]
[1738780203796,3.2078,2738.9,2738.2,4.72865101]
[1738780203995,3.2078,2739.2,2738.3,4.29771135]
[1738780204298,3.2078,2739.2,2738.3,9.55351135]
[1738780204595,3.2078,2738.9,2738.5,0.00547355]
[1738780204798,0.00547355,2739.0,2738.5,0.00547355]
[1738780205000,3.21327355,2739.0,2738.5,0.00547355]
[1738780205196,3.2078,2738.6,2738.5,0.00547355]
[1738780205697,3.21327355,2739.0,2738.5,0.00547355]
[1738780206697,0.00547355,2739.0,2738.6,4.65348373]
[1738780206897,0.00547355,2739.0,2738.9,3.2078]
[1738780207098,3.2078,2739.6,2738.9,3.2078]
[1738780207299,3.2078,2739.6,2738.9,4.65348373]
[1738780207595,3.2078,2739.6,2739.1,3.2078]
[1738780208096,3.2078,2739.6,2739.0,4.77751685]
[1738780208301,3.2078,2739.3,2738.5,0.00547355]
[1738780208701,3.21327355,2739.6,2738.8,4.82050983]
[1738780208895,3.21327355,2739.6,2738.7,3.2078]
[1738780208896,3.2078,2739.3,2738.7,3.2078]
[1738780209199,0.00547355,2739.6,2738.5,0.00547355]
[1738780209200,3.2078,2739.0,2738.5,0.00547355]
[1738780210095,3.2078,2738.6,2738.5,0.00547355]
[1738780211903,3.2078,2739.0,2738.5,4.73771262]
[1738780212106,3.2078,2739.4,2738.7,3.2078]
[1738780212413,3.2078,2739.4,2738.8,45.47385892]
[1738780212610,3.2078,2739.4,2738.8,47.40275892]
[1738780212809,3.2078,2739.1,2738.5,0.00547355]
[1738780213413,3.2078,2738.8,2738.5,0.00547355]
[1738780214906,8.2078,2738.8,2738.5,0.00547355]
[1738780215108,0.7302,2738.6,2737.6,3.2078]
[1738780215408,1.9748,2738.7,2737.4,2.0276]
[1738780215409,3.2078,2738.1,2737.4,2.0276]
[1738780216309,3.2078,2738.1,2737.4,5.2354]
[1738780216514,0.00547355,2738.0,2737.5,0.00547355]
[1738780217406,0.00547355,2738.0,2737.9,3.2078]
[1738780217601,0.00547355,2738.0,2737.9,7.50551135]
[1738780217808,0.00547355,2738.0,2737.9,4.77346497]
[1738780218010,0.00547355,2738.0,2737.5,0.00547355]
[1738780218812,0.00547355,2738.0,2737.6,4.80538261]
[1738780219214,0.00547355,2738.0,2737.5,0.00547355]
[1738780221118,0.00547355,2738.0,2737.6,4.6782095]
[1738780221612,0.00547355,2738.0,2737.8,3.2078]
[1738780222010,0.00547355,2738.0,2737.5,2.05337355]
[1738780222408,0.00547355,2738.0,2737.7,7.98046124]
[1738780222612,3.2078,2739.7,2737.8,6.29351135]
[1738780222816,3.2078,2739.7,2738.8,3.2078]
[1738780223114,3.2078,2739.7,2739.4,4.29771135]
[1738780223315,3.2078,2740.0,2739.4,3.2078]
[1738780223516,3.2078,2740.0,2739.5,4.6852864]
[1738780223705,3.21327355,2740.0,2739.5,4.6852864]
[1738780224111,3.21327355,2740.0,2739.4,0.00547355]
[1738780224312,0.00547355,2740.0,2739.6,4.80693436]
[1738780224505,0.00547355,2740.0,2739.6,8.01473436]
[1738780224705,0.00547355,2740.0,2739.7,3.2078]
[1738780224911,0.00547355,2740.0,2739.7,4.80693436]
[1738780225118,3.21327355,2740.0,2739.7,4.80693436]
[1738780225318,3.21327355,2740.0,2739.4,0.00547355]
[1738780226017,0.00547355,2740.0,2739.5,4.74864379]
[1738780226311,3.21327355,2740.0,2739.5,4.74864379]
[1738780226511,3.21327355,2740.0,2739.4,0.00547355]
[1738780226917,0.00547355,2740.0,2739.5,4.67369388]
[1738780227216,0.00547355,2740.0,2739.6,5.2729]
[1738780227418,0.00547355,2740.0,2739.7,3.2078]
[1738780227612,0.00547355,2740.0,2739.8,4.29771135]
[1738780227813,7.29271135,2741.6,2739.8,4.29771135]
[1738780227814,3.2078,2741.5,2740.0,0.7298]
[1738780228011,3.2078,2741.5,2740.7,3.2078]
[1738780228410,3.2078,2741.5,2740.8,4.72827203]
[1738780228619,3.2078,2741.8,2741.1,3.2078]
[1738780228809,3.2078,2742.1,2741.1,3.2078]
[1738780229013,3.2078,2742.4,2741.2,11.08255693]
[1738780229215,3.2078,2741.8,2741.2,6.78484558]
[1738780230121,1.582,2742.7,2741.2,0.00547355]
[1738780230122,3.2078,2741.4,2741.2,0.00547355]
[1738780231623,3.2078,2741.9,2741.3,4.63840868]
[1738780231921,3.2078,2741.9,2741.4,2.0731]
[1738780232322,2.002,2742.3,2741.2,0.00547355]
[1738780232323,3.2078,2741.6,2741.2,0.00547355]
[1738780232619,3.2078,2741.6,2741.4,4.68827505]
[1738780233019,3.2078,2741.6,2741.2,0.00547355]
[1738780233218,3.2078,2742.2,2741.5,4.68827505]
[1738780233412,3.9851,2742.8,2741.5,4.68827505]
[1738780233413,3.2078,2742.6,2741.5,4.68827505]
[1738780233617,3.2078,2742.6,2741.8,3.2078]
[1738780233819,3.2078,2743.0,2742.3,3.2078]
[1738780234221,3.2078,2743.0,2742.4,4.67019515]
[1738780235124,1.9991,2743.1,2742.1,4.1621]
[1738780235125,3.2078,2742.9,2742.1,4.1621]
[1738780235329,3.2078,2742.5,2741.7,3.2078]
[1738780235620,3.2078,2742.5,2741.8,4.69329953]
[1738780235823,3.2078,2741.9,2741.8,4.69329953]
[1738780236024,3.2078,2741.9,2741.4,5.3522]
[1738780236719,3.2078,2742.2,2741.4,5.3522]
[1738780237216,3.2078,2741.9,2741.4,5.3522]
[1738780237816,3.2078,2742.2,2741.4,5.3522]
[1738780238021,3.2078,2742.8,2742.1,3.2078]
[1738780238426,3.2078,2742.8,2742.2,16.35612078]
[1738780238626,3.2078,2742.8,2742.2,57.15612078]
[1738780240028,3.2078,2742.8,2742.2,8.89720695]
[1738780241329,3.2078,2742.8,2742.4,4.29771135]
[1738780241528,3.2078,2743.1,2742.4,7.50551135]
[1738780241728,3.2078,2743.1,2742.5,4.74521183]
[1738780242129,3.2078,2743.1,2742.5,4.75068538]
[1738780242338,3.2078,2743.6,2742.6,3.2078]
[1738780242634,3.2078,2743.6,2743.0,3.2078]
[1738780243033,3.2078,2743.6,2743.1,4.8350354]
[1738780243434,3.2078,2743.6,2743.2,4.139]
[1738780243933,3.2078,2743.6,2743.3,4.66412468]
[1738780244840,3.2078,2743.6,2742.6,1.9712]
[1738780245036,3.2078,2743.6,2742.7,3.2078]
[1738780245339,3.2078,2743.6,2742.9,7.92731052]
[1738780245637,3.2078,2743.6,2742.9,3.2078]
[1738780245832,3.2078,2743.6,2743.0,4.67347181]
[1738780246035,3.2078,2743.9,2743.2,7.50551135]
[1738780246434,3.2078,2743.9,2743.3,4.67347181]
[1738780246835,3.2078,2743.6,2742.8,4.29771135]
[1738780247141,3.2078,2743.6,2742.9,4.65405625]
[1738780248033,3.2078,2743.2,2742.7,2.1138]
[1738780248547,3.2078,2743.2,2742.8,4.73029618]
[1738780250137,1.9871,2743.5,2742.9,3.2078]
[1738780250342,1.9871,2743.5,2742.8,4.73029618]
[1738780250548,1.9871,2743.5,2743.0,4.80905746]
[1738780250744,1.9871,2743.5,2742.9,4.80905746]
[1738780251151,1.9871,2743.5,2742.7,2.1138]
[1738780251445,3.2078,2743.6,2743.0,4.80905746]
[1738780251646,3.2078,2743.6,2742.9,4.74753519]
[1738780251849,3.2078,2743.6,2743.1,3.2078]
[1738780252049,3.2078,2743.9,2743.1,7.95533519]
[1738780252448,3.2078,2744.2,2743.4,3.2078]
[1738780252645,3.2078,2744.2,2743.5,2.1251]
[1738780252845,3.2078,2744.2,2743.5,6.8047948]
[1738780253155,3.2078,2744.2,2743.5,8.7932948]
[1738780253649,3.2078,2744.8,2744.1,3.2078]
[1738780254047,3.2078,2744.8,2744.2,4.79061442]
[1738780254247,3.2078,2744.8,2744.2,4.79608797]
[1738780255146,3.2078,2744.8,2744.2,0.00547355]
[1738780255344,3.2078,2744.8,2744.3,4.75338803]
[1738780255747,3.2078,2744.8,2744.2,0.00547355]
[1738780256848,3.2078,2744.8,2744.3,4.63195004]
[1738780257358,3.2078,2744.8,2744.4,3.76090596]
[1738780257554,5.3275,2745.5,2744.7,3.2078]
[1738780257859,5.3275,2745.5,2744.8,4.63427612]
[1738780258358,3.2078,2745.5,2745.0,3.2078]
[1738780258658,3.2078,2745.5,2745.2,4.29771135]
[1738780258958,3.2078,2745.5,2745.0,44.0078]